[Event "WYCC 2018 O16"]
[Site "Halkidiki"]
[Date "2018.10.27"]
[Round "8"]
[White "Mukhutdinov, Tigran"]
[Black "Kalavannan, Koby"]
[Result "1/2-1/2"]
[ECO "B23"]
[WhiteElo "2256"]
[BlackElo "2365"]
[Annotator "NA"]
[PlyCount "160"]
[EventDate "2018.10.20"]
[EventType "swiss"]
[EventCountry "GRE"]
[SourceTitle "playchess.com"]
[Source "ChessBase"]
[SourceQuality "1"]
[TimeControl "40/5400+30:1800+30"]

1. e4 {[%emt 0:00:00]} c5 {[%emt 0:00:00]} 2. Nc3 {[%emt 0:00:00]} g6 {[%emt 0:00:00]} 3. f4 {[%emt 0:00:03]} Bg7 {[%emt 0:00:00]} 4. Nf3 {[%emt 0:00:11]} Nc6 {[%emt 0:00:00]} 5. Bb5 {[%emt 0:00:18]} Nd4 {[%emt 0:00:07]} 6. Bd3 {[%emt 0:02:49]} d6 {[%emt 0:01:16]} 7. Nxd4 {[%emt 0:00:43]} cxd4 {[%emt 0:00:03]} 8. Ne2 {[%emt 0:00:06]} Nf6 {[%emt 0:00:28]} 9. c3 {[%emt 0:02:21]} dxc3 {[%emt 0:02:47]} 10. dxc3 {[%emt 0:00:58]} Qb6 {[%emt 0:03:10]} 11. Qb3 {[%emt 0:03:03]} Qxb3 {[%emt 0:03:33]} 12. axb3 {[%emt 0:00:07]} O-O {[%emt 0:08:00]} 13. O-O {[%emt 0:08:37]} Bd7 {[%emt 0:08:15]} 14. Nd4 {[%emt 0:05:49]} e5 {[%emt 0:10:16]} 15. Nf3 {[%emt 0:11:29]} Rfe8 {[%emt 0:02:59]} 16. fxe5 {[%emt 0:01:52]} dxe5 {[%emt 0:00:05]} 17. Ra5 {[%emt 0:01:35]} Bc6 {[%emt 0:08:00]} 18. Re1 {[%emt 0:05:56]} Nd7 {[%emt 0:08:44]} 19. Bb5 {[%emt 0:02:05]} Bxb5 {[%emt 0:06:33]} 20. Rxb5 {[%emt 0:00:06]} b6 {[%emt 0:00:02]} 21. Rd5 {[%emt 0:06:54]} Nc5 {[%emt 0:02:51]} 22. b4 {[%emt 0:01:24]} Ne6 {[%emt 0:03:15]} 23. Be3 {[%emt 0:01:23]} f5 {[%emt 0:08:18]} 24. Ra1 {[%emt 0:02:46]} fxe4 {[%emt 0:13:03]} 25. Nd2 {[%emt 0:01:39]} Nf4 {[%emt 0:00:01]} 26. Rd7 {[%emt 0:00:36]} a5 {[%emt 0:01:14]} 27. g3 {[%emt 0:06:36]} Nd3 {[%emt 0:01:21]} 28. Nxe4 {[%emt 0:00:55]} Nxb2 {[%emt 0:00:31]} 29. Bxb6 {[%emt 0:04:25]} a4 {[%emt 0:04:03]} 30. Rc7 {[%emt 0:07:35]} Rec8 {[%emt 0:01:40]} 31. Rxc8+ {[%emt 0:04:24]} Rxc8 {[%emt 0:00:01]} 32. Bc5 {[%emt 0:02:00]} Ra8 {[%emt 0:01:53]} 33. Ra2 {[%emt 0:02:07]} Nc4 {[%emt 0:00:06]} 34. Kf2 {[%emt 0:00:57]} Kf7 {[%emt 0:01:04]} 35. Ke2 {[%emt 0:04:04]} Ke6 {[%emt 0:00:03]} 36. Kd3 {[%emt 0:03:33]} Kd5 {[%emt 0:00:00]} 37. Be7 {[%emt 0:03:38]} a3 {[%emt 0:01:30]} 38. Nd2 {[%emt 0:01:59]} Nxd2 {[%emt 0:01:17]} 39. Kxd2 {[%emt 0:00:22]} Kc4 {[%emt 0:00:20]} 40. Kc2 {[%emt 0:00:00]} e4 {[%emt 0:00:00]} 41. b5 {[%emt 0:04:50]} e3 {[%emt 0:16:38]} 42. Bg5 {[%emt 0:01:26]} e2 {[%emt 0:02:58]} 43. Bd2 {[%emt 0:01:52]} Bh6 {[%emt 0:05:55]} 44. Be1 {[%emt 0:02:27]} Rd8 {[%emt 0:01:19]} 45. Rxa3 {[%emt 0:02:34]} Rd1 {[%emt 0:00:04]} 46. Ra4+ {[%emt 0:00:03]} Kxb5 {[%emt 0:02:59]} 47. Rb4+ {[%emt 0:00:36]} Ka5 {[%emt 0:00:41]} 48. Rb1 {[%emt 0:00:23]} Rxb1 {[%emt 0:00:05]} 49. Kxb1 {[%emt 0:00:03]} Kb5 {[%emt 0:00:12]} 50. Kc2 {[%emt 0:00:12]} Kc4 {[%emt 0:00:02]} 51. g4 {[%emt 0:01:29]} Bf4 {[%emt 0:06:16]} 52. h3 {[%emt 0:00:44]} h6 {[%emt 0:00:35]} 53. Bf2 {[%emt 0:00:27]} Bg5 {[%emt 0:00:48]} 54. Bg3 {[%emt 0:00:52]} Be3 {[%emt 0:00:22]} 55. Be1 {[%emt 0:00:39]} Bg5 {[%emt 0:00:28]} 56. Bg3 {[%emt 0:00:11]} Bf4 {[%emt 0:00:03]} 57. Bf2 {[%emt 0:00:13]} g5 {[%emt 0:00:31]} 58. Be1 {[%emt 0:00:30]} Be5 {[%emt 0:01:08]} 59. Kd2 {[%emt 0:00:38]} Bxc3+ {[%emt 0:00:16]} 60. Kxe2 {[%emt 0:00:03]} Bxe1 {[%emt 0:00:05]} 61. Kxe1 {[%emt 0:00:03]} Kd3 {[%emt 0:00:42]} 62. Kf2 {[%emt 0:00:03]} Kd2 {[%emt 0:01:00]} 63. Kg3 {[%emt 0:00:29]} Ke3 {[%emt 0:00:21]} 64. h4 {[%emt 0:00:09]} Ke4 {[%emt 0:00:17]} 65. hxg5 {[%emt 0:00:05]} hxg5 {[%emt 0:00:03]} 66. Kf2 {[%emt 0:00:21]} Kf4 {[%emt 0:00:08]} 67. Kg1 {[%emt 0:00:05]} Kg3 {[%emt 0:00:44]} 68. Kf1 {[%emt 0:00:08]} Kh2 {[%emt 0:00:39]} 69. Kf2 {[%emt 0:00:07]} Kh3 {[%emt 0:00:06]} 70. Kf3 {[%emt 0:00:04]} Kh4 {[%emt 0:00:05]} 71. Kf2 {[%emt 0:00:03]} Kh3 {[%emt 0:00:58]} 72. Kf3 {[%emt 0:00:05]} Kh4 {[%emt 0:00:02]} 73. Kf2 {[%emt 0:00:06]} Kxg4 {[%emt 0:00:03]} 74. Kg2 {[%emt 0:00:10]} Kf4 {[%emt 0:00:14]} 75. Kf2 {[%emt 0:00:06]} g4 {[%emt 0:00:09]} 76. Kg2 {[%emt 0:00:05]} g3 {[%emt 0:00:04]} 77. Kg1 {[%emt 0:00:10]} Kg4 {[%emt 0:00:08]} 78. Kg2 {[%emt 0:00:06]} Kh4 {[%emt 0:00:02]} 79. Kg1 {[%emt 0:00:11]} Kh3 {[%emt 0:00:01]} 80. Kh1 {[%emt 0:00:08]} g2+ {[%emt 0:00:03]} 1/2-1/2

[Event "WYCC 2018 O16"]
[Site "Halkidiki"]
[Date "2018.10.27"]
[Round "8"]
[White "Quirhuayo Chumbe, German Gonzalo"]
[Black "Teclaf, Pawel"]
[Result "1/2-1/2"]
[ECO "B11"]
[WhiteElo "2220"]
[BlackElo "2384"]
[Annotator "NA"]
[PlyCount "76"]
[EventDate "2018.10.20"]
[EventType "swiss"]
[EventCountry "GRE"]
[SourceTitle "playchess.com"]
[Source "ChessBase"]
[SourceQuality "1"]
[TimeControl "40/5400+30:1800+30"]

1. e4 {[%emt 0:00:00]} c6 {[%emt 0:00:00]} 2. Nc3 {[%emt 0:00:00]} d5 {[%emt 0:00:00]} 3. Nf3 {[%emt 0:00:00]} Bg4 {[%emt 0:00:00]} 4. h3 {[%emt 0:00:00]} Bxf3 {[%emt 0:00:00]} 5. Qxf3 {[%emt 0:00:05]} Nf6 {[%emt 0:00:00]} 6. d3 {[%emt 0:01:47]} e6 {[%emt 0:00:19]} 7. Bd2 {[%emt 0:00:10]} Qb6 {[%emt 0:01:05]} 8. O-O-O {[%emt 0:00:19]} d4 {[%emt 0:01:12]} 9. Ne2 {[%emt 0:00:24]} c5 {[%emt 0:00:04]} 10. g4 {[%emt 0:01:20]} Nc6 {[%emt 0:01:09]} 11. g5 {[%emt 0:02:04]} Nd7 {[%emt 0:00:04]} 12. Qg3 {[%emt 0:01:13]} O-O-O {[%emt 0:01:23]} 13. Kb1 {[%emt 0:14:01]} h6 {[%emt 0:14:31]} 14. h4 {[%emt 0:01:22]} Bd6 {[%emt 0:10:17]} 15. Qg1 {[%emt 0:08:43]} hxg5 {[%emt 0:15:01]} 16. Bxg5 {[%emt 0:01:22]} Rdg8 {[%emt 0:03:59]} 17. Bc1 {[%emt 0:07:59]} Qd8 {[%emt 0:06:10]} 18. Bg5 {[%emt 0:10:57]} Qb6 {[%emt 0:01:37]} 19. Bc1 {[%emt 0:00:46]} g6 {[%emt 0:03:29]} 20. f4 {[%emt 0:10:01]} Be7 {[%emt 0:04:07]} 21. h5 {[%emt 0:02:23]} Qd8 {[%emt 0:06:00]} 22. hxg6 {[%emt 0:02:13]} Rxg6 {[%emt 0:00:16]} 23. Rxh8 {[%emt 0:00:06]} Qxh8 {[%emt 0:00:06]} 24. Qf2 {[%emt 0:00:12]} Qh1 {[%emt 0:04:35]} 25. Qe1 {[%emt 0:08:15]} Rg8 {[%emt 0:04:08]} 26. c3 {[%emt 0:01:46]} Kb8 {[%emt 0:02:31]} 27. b3 {[%emt 0:05:13]} Qf3 {[%emt 0:07:28]} 28. Bb2 {[%emt 0:04:05]} dxc3 {[%emt 0:02:27]} 29. Bxc3 {[%emt 0:00:48]} Nf6 {[%emt 0:01:14]} 30. Qd2 {[%emt 0:02:25]} Nh5 {[%emt 0:02:09]} 31. Kb2 {[%emt 0:04:04]} Rd8 {[%emt 0:01:22]} 32. a3 {[%emt 0:01:41]} a5 {[%emt 0:01:14]} 33. Ka2 {[%emt 0:01:55]} b6 {[%emt 0:02:18]} 34. Kb2 {[%emt 0:01:23]} Bf8 {[%emt 0:01:23]} 35. f5 {[%emt 0:02:13]} exf5 {[%emt 0:02:51]} 36. exf5 {[%emt 0:00:13]} Qxf5 {[%emt 0:01:35]} 37. Bg2 {[%emt 0:00:25]} Ne5 {[%emt 0:00:24]} 38. Be4 {[%emt 0:00:39]} Qf6 1/2-1/2

[Event "WYCC 2018 O16"]
[Site "Halkidiki"]
[Date "2018.10.27"]
[Round "8"]
[White "Wang, Yanbin"]
[Black "Mitsis, Georgios"]
[Result "1-0"]
[ECO "B92"]
[WhiteElo "2220"]
[BlackElo "2350"]
[Annotator "NA"]
[PlyCount "69"]
[EventDate "2018.10.20"]
[EventType "swiss"]
[EventCountry "GRE"]
[SourceTitle "playchess.com"]
[Source "ChessBase"]
[SourceQuality "1"]
[TimeControl "40/5400+30:1800+30"]

1. Nf3 {[%emt 0:00:00]} c5 {[%emt 0:00:00]} 2. e4 {[%emt 0:00:00]} d6 {[%emt 0:00:05]} 3. d4 {[%emt 0:00:00]} Nf6 {[%emt 0:00:19]} 4. Nc3 {[%emt 0:00:03]} cxd4 {[%emt 0:00:06]} 5. Nxd4 {[%emt 0:00:03]} a6 {[%emt 0:00:07]} 6. Be2 {[%emt 0:00:15]} e5 {[%emt 0:00:06]} 7. Nb3 {[%emt 0:00:05]} Be7 {[%emt 0:00:28]} 8. O-O {[%emt 0:00:13]} Be6 {[%emt 0:01:03]} 9. f4 {[%emt 0:00:49]} Qc7 {[%emt 0:10:24]} 10. f5 {[%emt 0:00:26]} Bc4 {[%emt 0:00:07]} 11. a4 {[%emt 0:01:01]} Nbd7 {[%emt 0:02:13]} 12. Be3 {[%emt 0:01:37]} Rc8 {[%emt 0:01:55]} 13. Kh1 {[%emt 0:08:47]} O-O {[%emt 0:05:05]} 14. a5 {[%emt 0:00:43]} Bxe2 15. Qxe2 {[%emt 0:00:05]} d5 {[%emt 0:07:26]} 16. exd5 {[%emt 0:03:44]} Bb4 {[%emt 0:00:27]} 17. Bb6 {[%emt 0:01:38]} Nxb6 {[%emt 0:03:35]} 18. axb6 {[%emt 0:00:04]} Qxb6 {[%emt 0:00:12]} 19. Ne4 {[%emt 0:01:14]} Nxd5 {[%emt 0:01:00]} 20. f6 {[%emt 0:00:17]} g6 {[%emt 0:02:14]} 21. c3 {[%emt 0:00:35]} Nf4 {[%emt 0:14:18]} 22. Qf2 {[%emt 0:29:01]} Qxf2 {[%emt 0:16:12]} 23. Rxf2 {[%emt 0:00:11]} Nd3 {[%emt 0:00:05]} 24. Rd2 {[%emt 0:02:43]} Nc5 {[%emt 0:00:06]} 25. Nbxc5 {[%emt 0:00:05]} Bxc5 {[%emt 0:00:05]} 26. Rd7 {[%emt 0:00:29]} b5 {[%emt 0:03:00]} 27. Rxa6 {[%emt 0:00:59]} b4 {[%emt 0:00:05]} 28. g3 {[%emt 0:04:44]} bxc3 {[%emt 0:00:45]} 29. bxc3 {[%emt 0:00:01]} Be3 {[%emt 0:03:13]} 30. Kg2 {[%emt 0:05:00]} Rfd8 {[%emt 0:00:56]} 31. Re7 {[%emt 0:00:38]} h6 {[%emt 0:02:00]} 32. Nd6 {[%emt 0:02:41]} Rxc3 {[%emt 0:06:45]} 33. Nxf7 {[%emt 0:00:09]} Rdc8 {[%emt 0:07:58]} 34. Nxe5 {[%emt 0:00:19]} R3c7 {[%emt 0:00:05]} 35. f7+ {[%emt 0:00:30]} 1-0

[Event "WYCC 2018 O16"]
[Site "Halkidiki"]
[Date "2018.10.27"]
[Round "8"]
[White "Sargsyan, Tigran R."]
[Black "Kaasen, Tor Fredrik"]
[Result "1/2-1/2"]
[ECO "E15"]
[WhiteElo "2218"]
[BlackElo "2388"]
[Annotator "NA"]
[PlyCount "145"]
[EventDate "2018.10.20"]
[EventType "swiss"]
[EventCountry "GRE"]
[SourceTitle "playchess.com"]
[Source "ChessBase"]
[SourceQuality "1"]
[TimeControl "40/5400+30:1800+30"]

1. d4 {[%emt 0:00:00]} Nf6 {[%emt 0:00:00]} 2. c4 {[%emt 0:00:00]} e6 {[%emt 0:00:01]} 3. Nf3 {[%emt 0:00:33]} b6 {[%emt 0:00:07]} 4. g3 {[%emt 0:03:05]} Ba6 {[%emt 0:00:17]} 5. b3 {[%emt 0:00:24]} d5 {[%emt 0:01:02]} 6. Bg2 {[%emt 0:00:52]} Bb4+ $11 {[%emt 0:00:29] LiveBook: 224 Games} 7. Bd2 {[%emt 0:00:12]} Bd6 {[%emt 0:00:06]} 8. Qc2 {[%emt 0:06:08]} O-O {[%emt 0:02:11]} 9. Nc3 {[%emt 0:04:02]} Nbd7 {[%emt 0:04:16]} 10. e4 dxe4 {[%emt 0:08:36]} 11. Ng5 {[%emt 0:11:58]} Bb7 {[%emt 0:04:13]} 12. Ngxe4 {[%emt 0:02:36]} Nxe4 {[%emt 0:01:54]} 13. Nxe4 {[%emt 0:00:13]} Rb8 {[%emt 0:04:16]} 14. O-O {[%emt 0:17:44]} Be7 {[%emt 0:10:49]} 15. Bf4 {[%emt 0:01:27]} Nf6 {[%emt 0:03:10]} 16. Rad1 Nxe4 17. Bxe4 {[%emt 0:00:37]} Bxe4 {[%emt 0:00:39]} 18. Qxe4 {[%emt 0:09:20]} Bd6 {[%emt 0:02:30]} 19. Be3 {[%emt 0:05:40]} Re8 {[%emt 0:08:47]} 20. Qc6 {[%emt 0:01:30]} Bf8 {[%emt 0:01:59]} 21. Bf4 {[%emt 0:01:12]} Bd6 {[%emt 0:00:48]} 22. Be3 {[%emt 0:05:24]} Bf8 23. c5 {[%emt 0:00:30]} Rc8 {[%emt 0:03:27]} 24. d5 {[%emt 0:02:37]} exd5 {[%emt 0:06:21]} 25. Rxd5 {[%emt 0:00:36]} Qe7 {[%emt 0:00:04]} 26. Rd7 {[%emt 0:14:36]} Qe6 {[%emt 0:02:31]} 27. Qxe6 {[%emt 0:00:22]} Rxe6 {[%emt 0:00:06]} 28. Rfd1 {[%emt 0:05:50]} bxc5 {[%emt 0:02:36]} 29. Rd8 {[%emt 0:01:07]} Rxd8 {[%emt 0:01:54]} 30. Rxd8 {[%emt 0:00:02]} Rc6 {[%emt 0:00:39]} 31. Rc8 {[%emt 0:03:22]} f6 {[%emt 0:04:41]} 32. Bf4 {[%emt 0:00:24]} Ra6 {[%emt 0:01:01]} 33. a4 {[%emt 0:01:36]} g5 {[%emt 0:00:14]} 34. Be3 {[%emt 0:01:08]} Rc6 {[%emt 0:00:11]} 35. f4 {[%emt 0:00:33]} h6 {[%emt 0:01:22]} 36. fxg5 {[%emt 0:00:06]} fxg5 {[%emt 0:02:20]} 37. h4 {[%emt 0:00:33]} gxh4 {[%emt 0:01:44]} 38. gxh4 {[%emt 0:00:01]} Kf7 {[%emt 0:01:26]} 39. Bf4 {[%emt 0:00:47]} Rg6+ {[%emt 0:01:59]} 40. Kf2 {[%emt 0:00:00]} Bd6 {[%emt 0:00:00]} 41. Bxd6 {[%emt 0:02:43]} cxd6 {[%emt 0:00:55]} 42. Rc7+ {[%emt 0:02:30]} Ke6 {[%emt 0:00:06]} 43. Rxa7 {[%emt 0:00:22]} Rg4 {[%emt 0:00:08]} 44. h5 {[%emt 0:01:50]} Rh4 {[%emt 0:04:30]} 45. Ke2 {[%emt 0:12:57]} Rxh5 {[%emt 0:00:41]} 46. Kd3 {[%emt 0:00:13]} Kd5 {[%emt 0:00:08]} 47. Rh7 {[%emt 0:00:55]} Rh3+ {[%emt 0:00:10]} 48. Kc2 {[%emt 0:00:03]} Kd4 {[%emt 0:00:11]} 49. Kb2 {[%emt 0:00:36]} Rh2+ {[%emt 0:09:39]} 50. Ka3 {[%emt 0:00:09]} Kc3 {[%emt 0:01:52]} 51. Rg7 {[%emt 0:00:41]} Rh1 {[%emt 0:04:15]} 52. Rg3+ {[%emt 0:00:43]} Kd4 {[%emt 0:00:02]} 53. Kb2 {[%emt 0:02:01]} Rh2+ {[%emt 0:05:34]} 54. Ka3 {[%emt 0:00:14]} Kd5 {[%emt 0:01:44]} 55. Rg6 {[%emt 0:04:22]} Kc6 {[%emt 0:02:27]} 56. a5 {[%emt 0:02:45]} Rd2 {[%emt 0:01:09]} 57. Rxh6 {[%emt 0:01:57]} Kb5 {[%emt 0:00:15]} 58. Rh5 {[%emt 0:01:29]} d5 {[%emt 0:00:05]} 59. Rh4 {[%emt 0:00:44]} d4 {[%emt 0:01:36]} 60. Rh5 {[%emt 0:00:37]} Rc2 61. Rd5 {[%emt 0:01:05]} Rc3 {[%emt 0:00:43]} 62. a6 {[%emt 0:00:52]} Kxa6 {[%emt 0:00:06]} 63. Ka4 Rc1 {[%emt 0:08:28]} 64. Rd6+ {[%emt 0:02:35]} Kb7 {[%emt 0:00:59]} 65. b4 {[%emt 0:00:53]} c4 66. Rxd4 Kc6 67. Ka3 {[%emt 0:00:51]} Rc3+ {[%emt 0:00:43]} 68. Kb2 {[%emt 0:00:17]} Rb3+ {[%emt 0:00:08]} 69. Kc2 {[%emt 0:00:05]} Rxb4 {[%emt 0:00:01]} 70. Rh4 {[%emt 0:00:16]} Ra4 {[%emt 0:00:32]} 71. Kc3 {[%emt 0:00:08]} Ra3+ {[%emt 0:00:08]} 72. Kb4 {[%emt 0:00:08]} Rb3+ {[%emt 0:00:07]} 73. Kxc4 {[%emt 0:00:05]} 1/2-1/2

[Event "WYCC 2018 O16"]
[Site "Halkidiki"]
[Date "2018.10.27"]
[Round "8"]
[White "Petkov, Matey"]
[Black "Lianes Garcia, Marcos"]
[Result "1-0"]
[ECO "A45"]
[WhiteElo "2164"]
[BlackElo "2376"]
[Annotator "NA"]
[PlyCount "119"]
[EventDate "2018.10.20"]
[EventType "swiss"]
[EventCountry "GRE"]
[SourceTitle "playchess.com"]
[Source "ChessBase"]
[SourceQuality "1"]
[TimeControl "40/5400+30:1800+30"]

1. d4 {[%emt 0:00:00]} Nf6 {[%emt 0:00:00]} 2. Bg5 {[%emt 0:00:20]} d5 {[%emt 0:00:54]} 3. Bxf6 {[%emt 0:00:39]} exf6 {[%emt 0:00:44]} 4. e3 {[%emt 0:00:33]} Bd6 {[%emt 0:00:28]} 5. g3 {[%emt 0:00:08]} O-O {[%emt 0:00:50]} 6. Bg2 {[%emt 0:00:07]} c6 {[%emt 0:00:35]} 7. Ne2 {[%emt 0:00:27]} f5 {[%emt 0:04:34]} 8. O-O {[%emt 0:00:24]} Nd7 {[%emt 0:00:34]} 9. b3 {[%emt 0:00:49]} Nf6 {[%emt 0:26:09]} 10. c4 {[%emt 0:01:43]} dxc4 11. bxc4 {[%emt 0:00:06]} Qe7 {[%emt 0:06:50]} 12. Nd2 {[%emt 0:08:42]} Be6 {[%emt 0:08:14]} 13. c5 {[%emt 0:03:41]} Bc7 {[%emt 0:00:55]} 14. Rb1 {[%emt 0:01:24]} Rab8 {[%emt 0:11:05]} 15. Qc2 {[%emt 0:05:41]} g6 {[%emt 0:10:02]} 16. Nc3 {[%emt 0:17:59]} Rfd8 {[%emt 0:11:38]} 17. Qa4 {[%emt 0:03:39]} a6 {[%emt 0:05:06]} 18. Rb2 {[%emt 0:02:21]} Qd7 {[%emt 0:01:18]} 19. Rfb1 {[%emt 0:02:48]} Qc8 {[%emt 0:00:04]} 20. Nc4 {[%emt 0:04:09]} f4 {[%emt 0:03:14]} 21. gxf4 {[%emt 0:18:33]} Bf5 {[%emt 0:00:00]} 22. Rc1 {[%emt 0:02:36]} Bh3 {[%emt 0:00:44]} 23. Qd1 {[%emt 0:02:51]} Bg4 {[%emt 0:02:37]} 24. Qf1 {[%emt 0:05:35]} h5 25. Ne4 Nxe4 {[%emt 0:01:36]} 26. Bxe4 {[%emt 0:00:31]} Qe6 {[%emt 0:00:36]} 27. f3 {[%emt 0:03:38]} Bh3 {[%emt 0:00:17]} 28. Qe2 {[%emt 0:00:29]} Re8 {[%emt 0:03:34]} 29. Rcb1 {[%emt 0:00:17]} Qc8 {[%emt 0:00:02]} 30. Qc2 {[%emt 0:00:48]} Be6 {[%emt 0:01:36]} 31. Bxg6 {[%emt 0:03:59]} Kh8 {[%emt 0:00:29]} 32. Bxh5 {[%emt 0:03:51]} Bxc4 {[%emt 0:00:28]} 33. Qxc4 {[%emt 0:00:06]} Rxe3 {[%emt 0:00:18]} 34. Qxf7 {[%emt 0:03:37]} Qg8+ {[%emt 0:00:12]} 35. Kf2 {[%emt 0:02:47]} Qxf7 {[%emt 0:00:14]} 36. Bxf7 {[%emt 0:00:03]} Re7 {[%emt 0:00:29]} 37. Bc4 {[%emt 0:00:34]} Bxf4 {[%emt 0:00:07]} 38. Bxa6 {[%emt 0:00:07]} Be3+ {[%emt 0:00:42]} 39. Kf1 {[%emt 0:00:34]} Rf8 {[%emt 0:01:12]} 40. Rxb7 {[%emt 0:00:00]} Rxf3+ {[%emt 0:00:00]} 41. Ke2 {[%emt 0:09:00]} Rf2+ {[%emt 0:00:47]} 42. Kd3 {[%emt 0:00:05]} Rd2+ {[%emt 0:00:20]} 43. Kc3 {[%emt 0:00:07]} Rxb7 {[%emt 0:01:11]} 44. Bxb7 {[%emt 0:00:08]} Rxd4 {[%emt 0:05:00]} 45. Re1 {[%emt 0:05:36]} Bf2 {[%emt 0:01:04]} 46. Rf1 {[%emt 0:00:06]} Rf4 {[%emt 0:03:05]} 47. Bxc6 {[%emt 0:01:39]} Bd4+ {[%emt 0:08:37]} 48. Kd3 {[%emt 0:00:16]} Rxf1 {[%emt 0:02:35]} 49. Kxd4 {[%emt 0:00:06]} Kg7 {[%emt 0:00:54]} 50. Kd5 {[%emt 0:00:51]} Rf2 {[%emt 0:08:26]} 51. a4 {[%emt 0:00:06]} Kf6 {[%emt 0:01:02]} 52. Kd6 {[%emt 0:00:55]} Rxh2 {[%emt 0:02:16]} 53. Bb5 {[%emt 0:05:43]} Rd2+ {[%emt 0:00:34]} 54. Kc7 {[%emt 0:00:07]} Ke6 {[%emt 0:01:33]} 55. c6 {[%emt 0:00:35]} Rh2 {[%emt 0:00:15]} 56. a5 {[%emt 0:00:31]} Rh7+ {[%emt 0:00:42]} 57. Kb6 {[%emt 0:00:17]} Kd6 {[%emt 0:00:10]} 58. a6 {[%emt 0:00:09]} Rh8 {[%emt 0:00:36]} 59. a7 {[%emt 0:00:34]} Rf8 {[%emt 0:00:48]} 60. Ba6 {[%emt 0:00:34]} 1-0

[Event "WYCC 2018 O16"]
[Site "Halkidiki"]
[Date "2018.10.27"]
[Round "8"]
[White "Vatsal Singhania"]
[Black "Kamer, Kayra"]
[Result "0-1"]
[ECO "B41"]
[WhiteElo "2128"]
[BlackElo "2290"]
[Annotator "NA"]
[PlyCount "144"]
[EventDate "2018.10.20"]
[EventType "swiss"]
[EventCountry "GRE"]
[SourceTitle "playchess.com"]
[Source "ChessBase"]
[SourceQuality "1"]
[TimeControl "40/5400+30:1800+30"]

1. e4 {[%emt 0:00:00]} c5 {[%emt 0:00:00]} 2. Nf3 {[%emt 0:00:00]} e6 {[%emt 0:00:00]} 3. d4 {[%emt 0:00:00]} cxd4 {[%emt 0:00:00]} 4. Nxd4 {[%emt 0:00:00]} a6 {[%emt 0:00:00]} 5. c4 {[%emt 0:00:00]} Nf6 {[%emt 0:00:00]} 6. Nc3 {[%emt 0:00:05]} Qc7 {[%emt 0:00:00]} 7. a3 {[%emt 0:00:08]} b6 {[%emt 0:00:00]} 8. Be3 {[%emt 0:00:06]} Bb7 {[%emt 0:00:00]} 9. f3 {[%emt 0:00:07]} Be7 {[%emt 0:00:28]} 10. Be2 {[%emt 0:00:07]} O-O {[%emt 0:00:06]} 11. Rc1 {[%emt 0:00:07]} d6 {[%emt 0:00:14]} 12. O-O {[%emt 0:00:07]} Nbd7 {[%emt 0:00:02]} 13. b4 {[%emt 0:00:06]} Rac8 {[%emt 0:00:02]} 14. Qd2 {[%emt 0:00:09]} Qb8 {[%emt 0:00:05]} 15. Rc2 {[%emt 0:00:11]} Rfe8 {[%emt 0:01:46]} 16. Kh1 {[%emt 0:00:09]} Ne5 {[%emt 0:02:37]} 17. Na4 {[%emt 0:01:23]} Nfd7 {[%emt 0:02:44]} 18. Rb1 {[%emt 0:08:31]} h5 {[%emt 0:05:52]} 19. Qc1 {[%emt 0:15:06]} Qa8 {[%emt 0:03:27]} 20. Nb3 {[%emt 0:04:24]} Bd8 {[%emt 0:00:54]} 21. c5 {[%emt 0:02:21]} b5 {[%emt 0:01:23]} 22. Nb2 {[%emt 0:03:35]} d5 {[%emt 0:00:21]} 23. exd5 {[%emt 0:00:17]} Bxd5 {[%emt 0:00:22]} 24. Nd4 {[%emt 0:00:22]} h4 {[%emt 0:00:39]} 25. h3 {[%emt 0:03:08]} Nf6 {[%emt 0:01:44]} 26. Nd3 {[%emt 0:05:57]} Ng6 {[%emt 0:05:12]} 27. Nf2 {[%emt 0:10:26]} Nh5 {[%emt 0:01:25]} 28. Bd3 {[%emt 0:01:33]} Ne5 {[%emt 0:01:47]} 29. Kg1 {[%emt 0:02:33]} Nxd3 {[%emt 0:02:23]} 30. Nxd3 {[%emt 0:00:16]} Bc7 {[%emt 0:00:57]} 31. Bf2 {[%emt 0:06:54]} e5 {[%emt 0:02:51]} 32. Qg5 {[%emt 0:01:16]} g6 {[%emt 0:00:53]} 33. Ne2 {[%emt 0:03:53]} Bd8 {[%emt 0:01:43]} 34. Qh6 {[%emt 0:05:11]} Bf6 {[%emt 0:05:12]} 35. Nc3 {[%emt 0:01:38]} Rcd8 {[%emt 0:00:31]} 36. Rd2 {[%emt 0:08:28]} Bxf3 {[%emt 0:06:26]} 37. gxf3 {[%emt 0:00:20]} Qxf3 {[%emt 0:00:06]} 38. Qe3 {[%emt 0:00:14]} Qxe3 {[%emt 0:01:15]} 39. Bxe3 {[%emt 0:00:21]} e4 {[%emt 0:00:20]} 40. Nf4 {[%emt 0:00:00]} Bxc3 {[%emt 0:00:00]} 41. Rxd8 {[%emt 0:06:02]} Rxd8 {[%emt 0:04:33]} 42. Nxh5 {[%emt 0:00:05]} gxh5 {[%emt 0:00:15]} 43. Kf2 {[%emt 0:00:58]} Be5 {[%emt 0:00:47]} 44. Rg1+ {[%emt 0:02:39]} Bg3+ {[%emt 0:00:05]} 45. Ke2 {[%emt 0:00:06]} Kf8 {[%emt 0:01:44]} 46. c6 {[%emt 0:02:54]} Ke7 {[%emt 0:00:35]} 47. Rc1 {[%emt 0:03:35]} Rc8 {[%emt 0:01:02]} 48. Bb6 {[%emt 0:01:39]} f5 {[%emt 0:04:46]} 49. Rc5 {[%emt 0:03:32]} Ke6 {[%emt 0:00:31]} 50. Ke3 {[%emt 0:02:12]} Bd6 {[%emt 0:10:02]} 51. Rc2 {[%emt 0:03:39]} Kd5 {[%emt 0:00:55]} 52. c7 {[%emt 0:00:16]} f4+ {[%emt 0:00:05]} 53. Ke2 {[%emt 0:00:03]} Ke6 {[%emt 0:00:43]} 54. Rc1 {[%emt 0:01:48]} Kd7 {[%emt 0:00:28]} 55. Rf1 {[%emt 0:05:47]} Kc6 {[%emt 0:03:01]} 56. Ba5 {[%emt 0:01:00]} Bxc7 {[%emt 0:00:28]} 57. Bxc7 {[%emt 0:01:37]} Rxc7 {[%emt 0:00:05]} 58. Rxf4 {[%emt 0:00:21]} Kd5 {[%emt 0:00:01]} 59. Kd2 {[%emt 0:02:07]} Rg7 {[%emt 0:01:28]} 60. Rxh4 {[%emt 0:00:35]} Rg5 {[%emt 0:01:18]} 61. Ke3 {[%emt 0:02:07]} Rg3+ {[%emt 0:00:03]} 62. Ke2 {[%emt 0:00:04]} Rxa3 {[%emt 0:00:57]} 63. Rxh5+ {[%emt 0:00:01]} Kd4 {[%emt 0:00:07]} 64. Rh6 {[%emt 0:00:13]} Ra2+ {[%emt 0:00:07]} 65. Kf1 {[%emt 0:00:06]} Kc3 {[%emt 0:00:50]} 66. Re6 {[%emt 0:00:25]} Kxb4 {[%emt 0:00:19]} 67. Rxe4+ {[%emt 0:00:05]} Ka3 {[%emt 0:00:10]} 68. h4 {[%emt 0:00:04]} a5 {[%emt 0:00:34]} 69. Re3+ {[%emt 0:01:06]} Ka4 {[%emt 0:00:12]} 70. Rh3 {[%emt 0:00:04]} b4 {[%emt 0:00:38]} 71. Ke1 {[%emt 0:01:20]} b3 {[%emt 0:00:06]} 72. Kd1 {[%emt 0:00:02]} Ra1+ {[%emt 0:00:05]} 0-1